{"text_format":"1","workbook":"xlsx","n_sheets":9,"sheets":["Index","Minimum-Supported-Specs","Productivity&Research-Desktop","Workstation-Desktop","Productivity&Travel-Mobile","Research-Mobile","Document-Imaging","Standard-Software-Requirements","Roles-Recommendations"],"not_rendered":{"charts":0,"images":0,"macros":1,"external_links":0,"defined_names":19,"comments":0,"pivot_tables":0},"unopened":[],"bounds":{"document_bytes":16777216,"sheet_cells":100000,"rows_first":2000,"rows_last":500,"rows_between":2000,"halvings":0,"cell_chars":16384,"cell_head_chars":4096},"cells_cut":0,"cells_raw":0,"read":"whole","date_system":"1900"}

{"sheet":"Index","index":0,"n_rows":9,"n_cols":1,"rows_kept":9,"cut":false,"hidden":false,"merged":[]}
["INDEX"]
["Minimum-Supported-Specs"]
["Productivity&Research-Desktop"]
["Workstation-Desktop"]
["Productivity&Travel-Mobile"]
["Research-Mobile"]
["Document-Imaging"]
["Standard-Software-Requirements"]
["Roles-Recommendations"]

{"sheet":"Minimum-Supported-Specs","index":1,"n_rows":18,"n_cols":8,"rows_kept":18,"cut":false,"hidden":false,"merged":[[17,1,17,2],[1,1,1,5],[3,1,13,1],[14,1,14,2],[15,1,15,2],[16,1,16,2]]}
[null,null,null,null,null,null,null,"Back to Index"]
[null,"Minimum Supported Standards"]
[null,null,null,"Windows","Macintosh","Linux"]
[null,"Hardware","Processor","Intel Penryn 45nm\nAMD K10","Intel Penryn 45nm","Intel Penryn 45nm\nAMD K10"]
[null,null,"Memory","4GB","4GB","4GB"]
[null,null,"Storage","250GB SATA II/128GB SSD","250GB SATA II/128GB SSD","250GB SATA II/128GB SSD"]
[null,null,"Display",{"$f":"'Standard-Software-Requirements'!D7","v":"23'' UXGA/HD"},{"$f":"'Standard-Software-Requirements'!E7","v":"23\" UXGA/HD"}]
[null,null,"Graphics","256MB DDR3 Discrete or Intel HD Sandy Bridge\nDirect X 10.1/OpenGL 3.1","256MB DDR3 Discrete or Intel HD Sandy Bridge\nDirect X 10.1/OpenGL 3.1","256MB DDR3 Discrete or Intel HD Sandy Bridge\nDirect X 10.1/OpenGL 3.1"]
[null,null,"Connectivity","1000BASE-TX or 802.11N capable and Bluetooth 3+HS","1000BASE-TX or 802.11N capable and Bluetooth 3+HS","1000BASE-TX or 802.11N"]
[null,null,"Audio",{"$f":"'Standard-Software-Requirements'!D10","v":"HD Audio"},{"$f":"'Standard-Software-Requirements'!F10","v":"HD Audio"},{"$f":"'Standard-Software-Requirements'!G10","v":"HD Audio"}]
[null,null,"Multimedia","16xDVD+/-RW\nSDHC 2.0","16xDVD+/-RW\nSDHC 2.0","16xDVD+/-RW\nSDHC 2.0"]
[null,null,"Input Devices","USB 2.0/Bluetooth 3.0/capable keyboard and mouse ","USB 2.0 or Apple Magic Mouse and keyboard","USB 2.0 capable keyboard and mouse "]
[null,null,"Bus-Types and Slots","PCI Express 2, SATA 2.0, USB 2.0","USB 2.0, Thunderbolt v1, SATA II, PCI Express 2","PCI Express 2, SATA 2.0, USB 2.0"]
[null,null,"External Interfaces","USB 2.0/3.0,DisplayPort 1.2,HDMI 1.3,DVI-D,DUAL-LINK DVI,Audio In/Out AHJ","USB 2.0/3.0,DisplayPort 1.2,HDMI 1.3,DVI-D,DUAL-LINK DVI,Audio In/Out ACH, Thunderbolt v1, TRS audio, Firewire 800","USB 2.0/3.0,DisplayPort 1.2,HDMI 1.3,DVI-D,DUAL-LINK DVI,Audio In/Out AHJ"]
[null,"OS",null,{"$f":"'Standard-Software-Requirements'!$D$3","v":"Windows 7 Professional\n(64-bit)"},{"$f":"'Standard-Software-Requirements'!$F$3","v":"Apple OS X Mavericks"},"RHEL 6.4"]
[null,"Manufacturer",null,"Dell/Lenovo","Apple","Dell/Lenovo"]
[null,"Model Class",null,"Business/Pro-sumer/Workstation","-","Business/Pro-sumer/Workstation"]
[null,"Architecture",null,"x86_64","x86_64","x86_64"]

{"sheet":"Productivity&Research-Desktop","index":2,"n_rows":22,"n_cols":8,"rows_kept":22,"cut":false,"hidden":false,"merged":[[20,1,20,2],[21,1,21,2],[1,1,1,4],[3,1,15,1],[16,1,16,2],[17,1,17,2],[18,1,18,2],[19,1,19,2]]}
[null,null,null,null,null,null,null,"Back to Index"]
[null,"Standard Configurations for Productivity Desktop Systems"]
[null,null,null,"Windows","Macintosh"]
[null,"Hardware","Processor","Intel Core i5 or i7\n(Haswell)","Intel Core i5 or i7\n(Haswell)"]
[null,null,"Memory",{"$f":"'Standard-Software-Requirements'!D5","v":"16GB"},"16GB"]
[null,null,"Storage",{"$f":"'Standard-Software-Requirements'!D6","v":"256GB SSD/ 1TB SATA"},{"$f":"'Standard-Software-Requirements'!F6","v":"256GB SSD/1TB SATA"}]
[null,null,"Display",{"$f":"'Standard-Software-Requirements'!D7","v":"23'' UXGA/HD"},{"$f":"'Standard-Software-Requirements'!F7","v":"27\" UXGA/HD"}]
[null,null,"Graphics",{"$f":"'Standard-Software-Requirements'!D8","v":"1GB DDR3\nDirect X 11/OpenGL 4.2"},{"$f":"'Standard-Software-Requirements'!F8","v":"2GB GDDR5"}]
[null,null,"Connectivity",{"$f":"'Standard-Software-Requirements'!D9","v":"1000BASE-TX or 802.11N capable"},{"$f":"'Standard-Software-Requirements'!F9","v":"1000BASE-TX or 802.11N capable and Bluetooth 4.0"}]
[null,null,"Audio",{"$f":"'Standard-Software-Requirements'!D10","v":"HD Audio"},{"$f":"'Standard-Software-Requirements'!F10","v":"HD Audio"}]
[null,null,"Multimedia",{"$f":"'Standard-Software-Requirements'!D11","v":"16xDVD+/-RW"},{"$f":"'Standard-Software-Requirements'!F11","v":"N/A"}]
[null,null,"Input Devices",{"$f":"'Standard-Software-Requirements'!D12","v":"USB 2.0 capable keyboard and mouse "},{"$f":"'Standard-Software-Requirements'!F12","v":"Apple Wireless Keyboard and Magic Mouse"}]
[null,null,"Bus-Types and Slots",{"$f":"'Standard-Software-Requirements'!D13","v":"PCI Express 3, SATA 3.0, SATA 2.0, USB 2.0/3.0"},{"$f":"'Standard-Software-Requirements'!F13","v":"USB 3.0, Thunderbolt 1,\nSD Card"}]
[null,null,"External Interfaces",{"$f":"'Standard-Software-Requirements'!D14","v":"4xUSB 3.0/6xUSB 2.0/1x9 Pin Serial/1xRJ45/2xLine-Out/2xLine-in For Microphone"},{"$f":"'Standard-Software-Requirements'!F14","v":"2xThunderbolt 1/4xUSB 3.0/\n1xAudio-Out/1xRJ-45"}]
[null,null,"Docking",{"$f":"'Standard-Software-Requirements'!D15","v":"DVI-D, HDMI, VGA, DisplayPort 1.2 USB, RJ45, Audio and Mic, External AC Adapter"},{"$f":"'Standard-Software-Requirements'!F15","v":"N/A"}]
[null,null,"Accessories",{"$f":"'Standard-Software-Requirements'!D16","v":"External Speaker(s)"},{"$f":"'Standard-Software-Requirements'!F16","v":"-"}]
[null,"OS",null,{"$f":"'Standard-Software-Requirements'!$D$3","v":"Windows 7 Professional\n(64-bit)"},{"$f":"'Standard-Software-Requirements'!$F$3","v":"Apple OS X Mavericks"}]
[null,"Manufacturer",null,"Dell","Apple"]
[null,"Model",null,"Optiplex","iMac"]
[null,"Type",null,9020,"27\" iMac"]
[null,"Warranty/Lifecycle",null,"4 Year Basic Hardware/4 Year NBD Onsite Service","3 Year AppleCare"]
[null,"Price",null,"$1020.46 (Based on purchase of system with 1TB SATA drive and 3.4GHz i7 during May 2014)","$2259.00 (Based on purchase of 1TB SATA drive and 3.5GHz i7 during June 2014)"]

{"sheet":"Workstation-Desktop","index":3,"n_rows":22,"n_cols":8,"rows_kept":22,"cut":false,"hidden":false,"merged":[[20,1,20,2],[21,1,21,2],[1,1,1,3],[3,1,15,1],[16,1,16,2],[17,1,17,2],[18,1,18,2],[19,1,19,2]]}
[null,null,null,null,null,"Back to Index",null,"Back to Index"]
[null,"Standard Configurations for Workstation Systems"]
[null,null,null,"Windows \\ Linux"]
[null,"Hardware","Processor","Intel Core i7\n(Haswell)"]
[null,null,"Memory",{"$f":"'Standard-Software-Requirements'!J5","v":"16GB"}]
[null,null,"Storage",{"$f":"'Standard-Software-Requirements'!J6","v":"1TB SATA"}]
[null,null,"Display",{"$f":"'Standard-Software-Requirements'!J7","v":"24\" UXGA/HD"}]
[null,null,"Graphics",{"$f":"'Standard-Software-Requirements'!J8","v":"2GB GDDR5\nDirect X 11/OpenGL 4.4"}]
[null,null,"Connectivity",{"$f":"'Standard-Software-Requirements'!J9","v":"1000BASE-TX or 802.11N capable"}]
[null,null,"Audio",{"$f":"'Standard-Software-Requirements'!J10","v":"HD Audio"}]
[null,null,"Multimedia",{"$f":"'Standard-Software-Requirements'!J11","v":"16xDVD+/-RW"}]
[null,null,"Input Devices",{"$f":"'Standard-Software-Requirements'!J12","v":"USB 2.0 capable keyboard and mouse"}]
[null,null,"Bus-Types and Slots",{"$f":"'Standard-Software-Requirements'!D13","v":"PCI Express 3, SATA 3.0, SATA 2.0, USB 2.0/3.0"}]
[null,null,"External Interfaces",{"$f":"'Standard-Software-Requirements'!D14","v":"4xUSB 3.0/6xUSB 2.0/1x9 Pin Serial/1xRJ45/2xLine-Out/2xLine-in For Microphone"}]
[null,null,"Docking",{"$f":"'Standard-Software-Requirements'!D15","v":"DVI-D, HDMI, VGA, DisplayPort 1.2 USB, RJ45, Audio and Mic, External AC Adapter"}]
[null,null,"Accessories",{"$f":"'Standard-Software-Requirements'!D16","v":"External Speaker(s)"}]
[null,"OS",null,"Windows 7 Professional (64-bit)/\nRedHat Enterprise"]
[null,"Manufacturer",null,"Dell"]
[null,"Model",null,"Precision"]
[null,"Type",null,"T1700"]
[null,"Warranty/Lifecycle",null,"4 Year Basic Hardware/4 Year NBD Onsite Service"]
[null,"Price",null,"$2063.68 (Based on purchase of system with 3.4GHz i7 during November 2013)"]

{"sheet":"Productivity&Travel-Mobile","index":4,"n_rows":22,"n_cols":8,"rows_kept":22,"cut":false,"hidden":false,"merged":[[20,1,20,2],[21,1,21,2],[1,1,1,4],[3,1,15,1],[16,1,16,2],[17,1,17,2],[18,1,18,2],[19,1,19,2]]}
[null,null,null,null,null,null,null,"Back to Index"]
[null,"Standard Configurations for Travel Mobile Systems"]
[null,null,null,"Windows","Macintosh"]
[null,"Hardware","Processor","Intel Core i5 or i7\n(Haswell)","Intel Core i5 or i7\n(Haswell)"]
[null,null,"Memory","8GB","16GB"]
[null,null,"Storage","256GB SSD/500GB SATA","256GB SSD"]
[null,null,"Display","14\" 1600x900","13.3\" 2560x1600"]
[null,null,"Graphics","Intel HD 4400\n(Shared Memory)","Intel Iris Graphics 5100\n(Shared Memory)"]
[null,null,"Connectivity","1000BASE-TX (External USB adapter required),802.11N, Bluetooth 4.0","1000BASE-TX (Thunderbolt adapter required),\n802.11N, Bluetooth 4.0"]
[null,null,"Audio","HD Audio","HD Audio"]
[null,null,"Multimedia","720p Webcam, Microphone","FaceTime camera, internal microphone"]
[null,null,"Input Devices","keyboard, mouse,\ntouchpad, TrackPoint,\nfingerprint reader","keyboard, touchpad"]
[null,null,"Bus-Types and Slots","USB 3.0, OneLink Technology","USB 3.0, Thunderbolt 2.0"]
[null,null,"External Interfaces","2xUSB 3.0, 1xLine-Out, 1xHDMI, 1xMini DisplayPort","2xUSB 3.0, 1xLine-Out, 1xHDMI, 2xThunderbolt 2.0, 1xSD Card Slot"]
[null,null,"Docking","2xUSB 3.0, 2xUSB 2.0,\n1x RJ-45, 1x HDMI, 1xHeadphone/Mic","N/A"]
[null,null,"Accessories","Carry bag, 65W AC Charger","Thunderbolt Ethernet Adapter, MagSafe 2 AC Charger"]
[null,"OS",null,"Windows 7 Professional 64-bit","Mac OS X 10.9"]
[null,"Manufacturer",null,"Lenovo","Apple"]
[null,"Model",null,"ThinkPad","Macbook"]
[null,"Type",null,"X1 Carbon","13\" Pro"]
[null,"Warranty/Lifecycle",null,"3year Depot + Accidental Damage Protection","3 Year AppleCare"]
[null,"Price",null,1814.29,1881]

{"sheet":"Research-Mobile","index":5,"n_rows":22,"n_cols":8,"rows_kept":22,"cut":false,"hidden":false,"merged":[[20,1,20,2],[21,1,21,2],[1,1,1,4],[3,1,15,1],[16,1,16,2],[17,1,17,2],[18,1,18,2],[19,1,19,2]]}
[null,null,null,null,null,null,null,"Back to Index"]
[null,"Standard Configurations for Research Mobile Systems"]
[null,null,null,"Windows","Macintosh"]
[null,"Hardware","Processor","Intel Core i5 or i7\n(Haswell)","Intel Core i5 or i7\n(Haswell)"]
[null,null,"Memory","16GB","16GB"]
[null,null,"Storage","256GB SSD/500GB SSHD","1TB SSD"]
[null,null,"Display","14\" 1600x900","15.4\" 2880x1800"]
[null,null,"Graphics","Intel HD Graphics 4600 (Shared Memory)","2GB GDDR5"]
[null,null,"Connectivity","1000BASE-TX,802.11N, Bluetooth 4.0","1000BASE-TX,802.11N, Bluetooth"]
[null,null,"Audio","HD Audio","HD Audio"]
[null,null,"Multimedia","8xDVD+/-RW, Webcam, Microphone","FaceTime camera, internal microphone"]
[null,null,"Input Devices","keyboard, touchpad","Wireless Keyboard, Magic Mouse"]
[null,null,"Bus-Types and Slots","USB 3.0","USB 3.0, Thunderbolt 2.0"]
[null,null,"External Interfaces","1xVGA, 1xHDMI, 4xUSB3.0, 1xRJ-45, 1xLine-Out","2xUSB 3.0, 1xLine-Out, 1xHDMI, 2xThunderbolt 2.0,\n1xSD Card Slot"]
[null,null,"Docking","DVI-D, HDMI, VGA, USB, eSATA, RJ45, Audio and Mic, External AC Adapter","N/A"]
[null,null,"Accessories","90W AC Charger, International Power Adapter","Thunderbolt Ethernet Adapter, MagSafe 2 AC Charger, International Power Adapter"]
[null,"OS",null,"Windows 7 Professional 64-bit","Mac OS X 10.9"]
[null,"Manufacturer",null,"Dell","Apple"]
[null,"Model",null,"Latitude","Macbook"]
[null,"Type",null,"E6440","15\" Pro"]
[null,"Warranty/Lifecycle",null,"4 Year Basic Hardware Service, 4 Year Accidental Damage Services","3 Year AppleCare"]
[null,"Price",null,1492.99,3406]

{"sheet":"Document-Imaging","index":6,"n_rows":38,"n_cols":9,"rows_kept":38,"cut":false,"hidden":false,"merged":[[36,1,36,2],[37,1,37,2],[34,1,34,2],[35,1,35,2],[1,5,1,8],[30,1,30,2],[31,1,31,2],[32,1,32,2],[33,1,33,2],[3,1,16,1],[17,1,25,1],[26,1,29,1],[1,1,1,4]]}
[null,null,null,null,null,null,null,"Back to Index"]
[null,"Standard Configurations for Document Imaging"]
[null,null,null,"Personal Printer\n(B&W)","Personal Printer\n(Color)","Personal Printer\n(MFP)","Workgroup\n(B&W)","Workgroup\n(Color)","Workgroup\n(MFP)"]
[null,"Printing","PPM",26,14,14,45,33,31]
[null,null,"Duty Cycle/Mo. Capacity","-/2000","30000/1500","30000/1500","175000/12000","75000/5000","75000/6000"]
[null,null,"Cartridge Capacity",2100,1600,1600,10000,5500,5500]
[null,null,"Paper Type(s)","Letter/Legal","Letter/Legal","Letter/Legal","Letter/Legal","Letter/Legal","Letter/Legal"]
[null,null,"Paper Tray Capacity",250,150,150,600,600,350]
[null,null,"Networking/Bus Interface","USB / 100BaseTX","USB / 100BaseTX / WiFi(n)","USB / 100BaseTX / WiFi (n)","USB / Gigabit LAN","USB / Gigabit LAN","USB / Gigabit LAN"]
[null,null,"ADF","NO","NO","YES","NO","NO","YES"]
[null,null,"Imaging Method","Laser","Laser","Laser","Laser","Laser","Laser"]
[null,null,"Output Resolution","600x600","600x600","600x600","1200x1200","1200x1200","1200x1200"]
[null,null,"PDLs","PCL5e","PCL5e/PCL6/PS3","PCL5e/PCL6/PS3","PCL5e/PCL6/PS3/\nPDF 1.4","PCL5e/PCL6/PS3/\nPDF 1.4","PCL5e/PCL6/PS3/\nPDF 1.4"]
[null,null,"Memory","32MB","128MB","256MB","512MB","1024MB","1536MB"]
[null,null,"Security","-","-","-","802.1x, IPsec, SSL, TLS","802.1x, IPsec, SSL, TLS","802.1x, IPsec, SSL, TLS"]
[null,null,"Finishing Capabilities","Duplex","-","-","Duplex","Duplex","Duplex"]
[null,null,"OS","Windows 7/Mac OS X 10.4+/Linux","Windows 7/Mac OS X 10.5+/Linux","Windows 7/Mac OS X 10.5+/Linux","Windows 7/\nMac OS X 10.5+","Windows 7/\nMac OS X 10.5+","Windows 7/\nMac OS X 10.5+"]
[null,"Scanning","PPM","-","-",12,"-","-","42 (B&W)\n32 (color)"]
[null,null,"ADF","-","-",35,"-","-",50]
[null,null,"Duplex","-","-","NO","-","-","YES"]
[null,null,"Resolution","-","-","1200x1200","-","-","600x600"]
[null,null,"Paper","-","-","Max: Legal","-","-","Max: Legal"]
[null,null,"Interface","-","-","USB / 100BaseTX / WiFi (n)","-","-","USB / Gigabit LAN"]
[null,null,"File Format","-","-","PDF, JPG, RTF, TXT, BMP, PNG, TIFF","-","-","-"]
[]
[null,null,"Imaging Method","-","-","Flatbed, ADF","-","-","Flatbed, ADF"]
[null,"Copying","PPM","-","-",14,"-","-",31]
[null,null,"Resolution","-","-","600x600","-","-","600x600"]
[]
[null,null,"Imaging Method","-","-","Flatbed, ADF","-","-","Flatbed, ADF"]
[null,"Est. Cost Per Page*",null,"3.8 cents","4.2/18.1","3.5/17.5","1.7 cents","1.8/13","1.5 cents"]
[null,"Manufacturer",null,"HP","HP","HP","HP","HP","HP"]
[null,"Model",null,"LaserJet Pro p1606dn","LaserJet Pro 200 Color M251nw","LaserJet Pro 200 MFP M276nw","LaserJet Enterprise 600 M601dn","LaserJet Enterprise M551dn","LaserJet Enterprise MFP M575f"]
[null,"Type",null,"Laser","Laser","Laser","Laser","Laser","Laser"]
[null,"Warranty",null,"-","3 years","3 years","3 year","3 year","3 year"]
[null,"Price",null,176,326.51,419.63,683,772.99,3193.1]
[null,"Price includes warranty?",null,"N/A","YES","YES","YES","YES","YES"]
[null,"Quote based off of invoice on:",null,2014,41780,41793,2013,41702,41725]

{"sheet":"Standard-Software-Requirements","index":7,"n_rows":17,"n_cols":11,"rows_kept":17,"cut":false,"hidden":false,"merged":[[16,1,16,2],[1,6,1,10],[1,1,1,5],[3,1,15,1]]}
[null,null,null,null,null,null,"Back to Index","Back to Index"]
[null,"Standard Software Requirements"]
[null,null,null,"Windows 7 Professional\n(64-bit)","Apple OS X Mountain Lion","Apple OS X Mavericks","Microsoft Office 2010 Pro Plus","Microsoft Office 2011 for Mac","MatLab R2011b 64-bit","MatLab R2014a 64-bit","Solidworks 2013-2014 64-bit"]
[null,"Hardware","Processor","Intel Core i5 or i7\n(Haswell)","Intel Core i5 or i7\n(Sandy Bridge)","Intel Core i5 or i7\n(Haswell)","Intel Core i5 or i7\n(Sandy Bridge)","Intel Core i5 or i7\n(Sandy Bridge)","Intel Core i5 or i7\n(Sandy Bridge)","Intel Core i5 or i7\n(Sandy Bridge)","Intel Core i5 or i7\n(Sandy Bridge)"]
[null,null,"Memory","16GB","8GB","16GB","4GB",{"$f":"E5","v":"8GB"},"8GB","16GB","16GB"]
[null,null,"Storage","256GB SSD/ 1TB SATA","256GB SSD/750GB SATA","256GB SSD/1TB SATA","256GB SSD/500GB SATA",{"$f":"E6","v":"256GB SSD/750GB SATA"},"1TB SATA","1TB SATA","1TB SATA"]
[null,null,"Display","23'' UXGA/HD","23\" UXGA/HD","27\" UXGA/HD","-","-","24\" UXGA/HD","24\" UXGA/HD",{"$f":"D7","v":"23'' UXGA/HD"}]
[null,null,"Graphics","1GB DDR3\nDirect X 11/OpenGL 4.2","1GB GDDR","2GB GDDR5","-","-","1GB GDDR Direct X10/OpenGL 3.1","2GB GDDR5\nDirect X 11/OpenGL 4.4",{"$f":"I8","v":"1GB GDDR Direct X10/OpenGL 3.1"}]
[null,null,"Connectivity","1000BASE-TX or 802.11N capable","1000BASE-TX or 802.11N capable","1000BASE-TX or 802.11N capable and Bluetooth 4.0",{"$f":"D9","v":"1000BASE-TX or 802.11N capable"},{"$f":"D9","v":"1000BASE-TX or 802.11N capable"},"1000BASE-TX or 802.11N capable","1000BASE-TX or 802.11N capable",{"$f":"D9","v":"1000BASE-TX or 802.11N capable"}]
[null,null,"Audio","HD Audio","HD Audio","HD Audio","HD Audio",{"$f":"E10","v":"HD Audio"},"HD Audio","HD Audio",{"$f":"H10","v":"HD Audio"}]
[null,null,"Multimedia","16xDVD+/-RW","N/A","N/A","-","-","-","16xDVD+/-RW","-"]
[null,null,"Input Devices","USB 2.0 capable keyboard and mouse ","USB 2.0 capable keyboard and mouse ","Apple Wireless Keyboard and Magic Mouse","USB 2.0 capable keyboard and mouse ",{"$f":"E12","v":"USB 2.0 capable keyboard and mouse "},"USB 2.0 capable keyboard and mouse","USB 2.0 capable keyboard and mouse","USB 2.0 capable keyboard and mouse "]
[null,null,"Bus-Types and Slots","PCI Express 3, SATA 3.0, SATA 2.0, USB 2.0/3.0","PCI Express 2.0, SATA 3.0, SATA 2.0, USB 2.0,Thunderbolt","USB 3.0, Thunderbolt 1,\nSD Card","-","-","-","-","-"]
[null,null,"External Interfaces","4xUSB 3.0/6xUSB 2.0/1x9 Pin Serial/1xRJ45/2xLine-Out/2xLine-in For Microphone","Thunderbolt 1/USB 2.0/FireWire 800, Audio-In, Audio-Out","2xThunderbolt 1/4xUSB 3.0/\n1xAudio-Out/1xRJ-45","-","-","-","-","-"]
[null,null,"Docking","DVI-D, HDMI, VGA, DisplayPort 1.2 USB, RJ45, Audio and Mic, External AC Adapter","N/A","N/A","-","-","-","-","-"]
[null,null,"Accessories","External Speaker(s)","External Speaker(s)","-","-","-","-","-","-"]
[null,"Remaining Mainstream Support",null,"Microsoft Support Lifecycle","Supported","Supported","Microsoft Support Lifecycle","Microsoft Support Lifecycle","Supported","Supported","Solidworks Support Cycle"]

{"sheet":"Roles-Recommendations","index":8,"n_rows":57,"n_cols":13,"rows_kept":57,"cut":false,"hidden":false,"merged":[[3,1,5,1],[1,1,1,6],[1,7,1,12]]}
[null,null,null,null,null,null,"Back to Index","Back to Index"]
[null,"Configuration Standards for Common Roles"]
[null,null,"Category","Software/Equipment","Support Staff\n(Windows)","Support Staff \n(Mac)","Faculty Researcher Graduate Student (Windows)","ECE Cluster (Windows)","ECE Cluster \n(Linux)","ME Cluster\n(Windows)","ECE Lab \n(Windows)","ECE Lab \n(Linux)","Graduate Student\n(Linux)"]
[null,null,"OS","Windows 7 Enterprise 64-bit"]
[null,null,"OS","Apple OS X Mavericks"]
[null,null,"OS","Red Hat Enterprise\n64-bit"]
[null,null,"HW","Hardware Standard","PD\nPM","PD\nPM","RD\nRM","CW","CW","CW","CW","CW","RD\nRM"]
[null,null,"Backup","Teradactyl TiBS Client"]
[null,null,"Productivity","Microsoft Office 2010 Pro Plus 32-bit"]
[null,"Customer must purchase license","Productivity","Adobe Acrobat Professional 11.0.7"]
[null,null,"Productivity","Microsoft Office for Mac 2011"]
[null,null,"Productivity","iWork 9"]
[null,null,"Productivity","Microsoft Project Pro 2010"]
[null,null,"Productivity","Microsoft Visio Pro 2010"]
[null,null,"Productivity","MathType"]
[null,null,"Internet Browser","Google Chrome"]
[null,null,"Internet Browser","Internet Explorer 10"]
[null,null,"LOB","Citrix Receiver"]
[null,null,"LOB","Filemaker Pro 11"]
[null,null,"LOB","PureEdge Grants Viewer"]
[null,null,"Network","Cisco AnyConnect VPN Client"]
[null,null,"Videoconferencing","Bluejeans Plugin"]
[null,null,"Plug-in","Adobe Flash Player"]
[null,null,"Plug-in","Java RTE 6 Update 75"]
[null,null,"Plug-in","7zip"]
[null,null,"Security","Microsoft Forefront Security Client 2012"]
[null,null,"Programming","Microsoft Visual Studio Pro 2012"]
[null,null,"Programming","Notepad ++"]
[null,null,"Programming","Python 2.6.6"]
[null,null,"Virtualization","Oracle VirtualBox"]
[null,null,"Interoperability","SSH Tectia Client"]
[null,null,"Interoperability","X-Win32 2012"]
[null,null,"Interoperability","Kerberos for Windows 3.2.2"]
[null,null,"Interoperability","Network Identity Manager 2.x"]
[null,null,"Interoperability","Kerberos for Mac (Tools)"]
[null,null,"Interoperability","OpenAFS Client"]
[null,null,"Interoperability","MySQL ODBC Connector"]
[null,null,"Interoperability","RealVNC Client"]
[null,null,"HPC","Condor"]
[null,null,"Engineering","Ansys"]
[null,null,"Engineering","Fluent 6.3.26/Gambit 2.4.6"]
[null,null,"Engineering","AutoCad"]
[null,null,"Engineering","Autodesk Inventor Pro 2012"]
[null,null,"Engineering","B2Spice"]
[null,null,"Engineering","Cadence"]
[null,null,"Engineering","Cantera"]
[null,null,"Engineering","Comsol 4.3"]
[null,null,"Engineering","Matlab R2014a"]
[null,null,"Engineering","ABB RobotStudio\nRobotworks"]
[null,null,"Engineering","MasterCam"]
[null,null,"Engineering","Creo ProE Wildfire"]
[null,null,"Engineering","Solidworks 2013-2014"]
[null,null,"Engineering","Mathematica"]
[null,null,"Engineering","MD Adams 2010"]
[null,null,"Engineering","National Instruments Labview"]
[null,null,"Engineering","Sandia MEMS Design Tools"]
[null,null,"Engineering","Xilinx"]